fUST/lending_fUST_20260523
["ID","MTS","AMOUNT","RATE_DAILY","PERIOD"]
[422846342,1779520241000,-500.0,8.219e-05,2]
[422846349,1779520241000,-1989.86,8.219e-05,2]
[422846338,1779520241000,-1016.08,8.219e-05,2]
[422846348,1779520241000,-3988.76,8.219e-05,2]
[422846336,1779520241000,-500.0,8.219e-05,2]
[422846335,1779520241000,-500.0,8.219e-05,2]
[422846337,1779520241000,-503.25272084,8.219e-05,2]
[422846426,1779520242000,-1155.0,8.219e-05,2]
[422846424,1779520242000,-1155.0,8.219e-05,2]
[422846417,1779520242000,-500.0,8.219e-05,2]
[422846422,1779520242000,-1155.0,8.219e-05,2]
[422846418,1779520242000,-1155.0,8.219e-05,2]
[422846415,1779520242000,-500.0,8.219e-05,2]
[422846419,1779520242000,-592.8479525,8.219e-05,2]
[422846416,1779520242000,-1155.0,8.219e-05,2]
[422846427,1779520242000,-1155.0,8.219e-05,2]
[422846423,1779520242000,-1155.0,8.219e-05,2]
[422846420,1779520242000,-1155.0,8.219e-05,2]
[422846421,1779520242000,-1155.0,8.219e-05,2]
[422846425,1779520242000,-1155.0,8.219e-05,2]
[422846428,1779520242000,-1155.0,8.219e-05,2]
[422846451,1779520242000,-1178.52027048,8.219e-05,2]
[422846433,1779520242000,-500.0,8.219e-05,2]
[422846432,1779520242000,-1155.0,8.219e-05,2]
[422846431,1779520242000,-1155.0,8.219e-05,2]
[422846441,1779520242000,-500.0,8.219e-05,2]
[422846439,1779520242000,-1155.0,8.219e-05,2]
[422846430,1779520242000,-11595.87,8.219e-05,2]
[422846440,1779520242000,-3303.7,8.219e-05,2]
[422846434,1779520242000,-1155.0,8.219e-05,2]
[422846438,1779520242000,-1155.0,8.219e-05,2]
[422846437,1779520242000,-3941.9,8.219e-05,2]
[422846436,1779520242000,-575.13,8.219e-05,2]
[422846435,1779520242000,-1155.0,8.219e-05,2]
[422846443,1779520242000,-1155.0,8.219e-05,2]
[422846409,1779520242000,-500.0,8.219e-05,2]
[422846429,1779520242000,-1155.0,8.219e-05,2]
[422846408,1779520242000,-500.0,8.219e-05,2]
[422846401,1779520242000,-500.0,8.219e-05,2]
[422846413,1779520242000,-500.0,8.219e-05,2]
[422846452,1779520242000,-500.0,8.219e-05,2]
[422846387,1779520242000,-500.0,8.219e-05,2]
[422846382,1779520242000,-8064.21,8.219e-05,2]
[422846383,1779520242000,-11952.34,8.219e-05,2]
[422846388,1779520242000,-4666.99,8.219e-05,2]
[422846384,1779520242000,-500.0,8.219e-05,2]
[422846385,1779520242000,-500.0,8.219e-05,2]
[422846386,1779520242000,-3968.39,8.219e-05,2]
[422846389,1779520242000,-1267.4,8.219e-05,2]
[422846396,1779520242000,-795.18,8.219e-05,2]
[422846397,1779520242000,-3557.07,8.219e-05,2]
[422846399,1779520242000,-2278.22,8.219e-05,2]
[422846398,1779520242000,-618.28,8.219e-05,2]
[422846391,1779520242000,-2396.15,8.219e-05,2]
[422846400,1779520242000,-510.97593477,8.219e-05,2]
[422846392,1779520242000,-500.0,8.219e-05,2]
[422846402,1779520242000,-500.0,8.219e-05,2]
[422846390,1779520242000,-872.4,8.219e-05,2]
[422846393,1779520242000,-500.0,8.219e-05,2]
[422846395,1779520242000,-882.1112,8.219e-05,2]
[422846394,1779520242000,-500.0,8.219e-05,2]
[422846404,1779520242000,-500.0,8.219e-05,2]
[422846405,1779520242000,-500.0,8.219e-05,2]
[422846403,1779520242000,-155.64505618,8.219e-05,2]
[422846407,1779520242000,-500.0,8.219e-05,2]
[422846414,1779520242000,-1155.0,8.219e-05,2]
[422846412,1779520242000,-1155.0,8.219e-05,2]
[422846406,1779520242000,-500.0,8.219e-05,2]
[422846411,1779520242000,-500.0,8.219e-05,2]
[422846410,1779520242000,-319.04843581,8.219e-05,2]
[422846450,1779520242000,-4230.94,8.219e-05,2]
[422846446,1779520242000,-2315.43,8.219e-05,2]
[422846442,1779520242000,-1155.0,8.219e-05,2]
[422846493,1779520242000,-249.28499126,8.219e-05,7]
[422846492,1779520242000,-184.71918377,8.219e-05,7]
[422846481,1779520242000,-180.67500612,8.219e-05,7]
[422846487,1779520242000,-196.639056,8.219e-05,2]
[422846484,1779520242000,-151.0,8.219e-05,2]
[422846489,1779520242000,-339.33219777,8.219e-05,7]
[422846483,1779520242000,-542.02501835,8.219e-05,7]
[422846485,1779520242000,-151.0,8.219e-05,2]
[422846488,1779520242000,-169.66609889,8.219e-05,7]
[422846486,1779520242000,-151.0,8.219e-05,2]
[422846491,1779520242000,-182.77092105,8.219e-05,7]
[422846490,1779520242000,-169.25267884,8.219e-05,7]
[422846494,1779520242000,-241.72823073,8.219e-05,7]
[422846496,1779520242000,-169.0355784,8.219e-05,7]
[422846498,1779520242000,-257.13819074,8.219e-05,7]
[422846497,1779520242000,-162.20169915,8.219e-05,7]
[422846495,1779520242000,-483.45646145,8.219e-05,7]
[422846501,1779520242000,-207.09297736,8.219e-05,7]
[422846499,1779520242000,-161.878339,8.219e-05,7]
[422846504,1779520242000,-306.87323565,8.3e-05,2]
[422846500,1779520242000,-213.63359714,8.219e-05,7]
[422846503,1779520242000,-539.98285114,8.297e-05,2]
[422846502,1779520242000,-611.86959774,8.297e-05,2]
[422846505,1779520242000,-308.31504453,8.3e-05,2]
[422846445,1779520242000,-500.0,8.219e-05,2]
[422846506,1779520242000,-3208.78925182,8.323e-05,2]
[422846510,1779520242000,-160.0,8.42e-05,2]
[422846509,1779520242000,-1613.0,8.397e-05,2]
[422846508,1779520242000,-392.48826489,8.396e-05,2]
[422846482,1779520242000,-361.35001224,8.219e-05,7]
[422846478,1779520242000,-793.7,8.219e-05,2]
[422846507,1779520242000,-244.64892748,8.352e-05,2]
[422846477,1779520242000,-2905.3,8.219e-05,2]
[422846444,1779520242000,-8659.86,8.219e-05,2]
[422846453,1779520242000,-933.52,8.219e-05,2]
[422846447,1779520242000,-2123.17,8.219e-05,2]
[422846449,1779520242000,-1155.0,8.219e-05,2]
[422846454,1779520242000,-4407.04,8.219e-05,2]
[422846448,1779520242000,-699.32,8.219e-05,2]
[422846455,1779520242000,-500.0,8.219e-05,2]
[422846457,1779520242000,-500.0,8.219e-05,2]
[422846468,1779520242000,-1642.01,8.219e-05,2]
[422846479,1779520242000,-55190.08,8.219e-05,2]
[422846459,1779520242000,-1731.71,8.219e-05,2]
[422846461,1779520242000,-414.9461277,8.219e-05,2]
[422846458,1779520242000,-500.0,8.219e-05,2]
[422846456,1779520242000,-500.0,8.219e-05,2]
[422846467,1779520242000,-500.0,8.219e-05,2]
[422846464,1779520242000,-8359.89,8.219e-05,2]
[422846476,1779520242000,-500.0,8.219e-05,2]
[422846460,1779520242000,-1059.1,8.219e-05,2]
[422846470,1779520242000,-3491.46,8.219e-05,2]
[422846475,1779520242000,-500.0,8.219e-05,2]
[422846471,1779520242000,-500.0,8.219e-05,2]
[422846472,1779520242000,-500.0,8.219e-05,2]
[422846480,1779520242000,-500.0,8.219e-05,2]
[422846474,1779520242000,-1556.14,8.219e-05,2]
[422846469,1779520242000,-930.46,8.219e-05,2]
[422846465,1779520242000,-2860.12,8.219e-05,2]
[422846466,1779520242000,-500.0,8.219e-05,2]
[422846463,1779520242000,-500.0,8.219e-05,2]
[422846462,1779520242000,-728.64,8.219e-05,2]
[422846473,1779520242000,-4310.72,8.219e-05,2]
[422846518,1779520243000,-13725.95871128,8.42e-05,2]
[422846517,1779520243000,-10409.629654,8.42e-05,2]
[422846515,1779520243000,-5304.009496,8.42e-05,2]
[422846511,1779520243000,-1837.606483,8.42e-05,2]
[422846516,1779520243000,-160.0,8.42e-05,2]
[422846513,1779520243000,-160.0,8.42e-05,2]
[422846512,1779520243000,-3515.212966,8.42e-05,2]
[422846514,1779520243000,-2732.004748,8.42e-05,2]
[422846536,1779520244000,-405.18115414,5.534e-05,2]
[422846542,1779520247000,-1449.14218298,5.534e-05,2]
[422846541,1779520247000,-3145.67666288,5.534e-05,2]
[422846543,1779520247000,-160.0,7.698e-05,2]
[422846544,1779520247000,-500.0,8.219e-05,2]
[422846545,1779520247000,-9911.94681342,8.295e-05,2]
[422846546,1779520407000,-300.0,5.199e-05,2]
[422846547,1779520407000,-700.0,5.2e-05,2]
[422846550,1779520410000,-1000.0,5.2e-05,2]
[422846549,1779520410000,-1000.0,5.2e-05,2]
[422846548,1779520410000,-1000.0,5.2e-05,2]
[422846553,1779520411000,-1000.0,5.2e-05,2]
[422846552,1779520411000,-1000.0,5.2e-05,2]
[422846551,1779520411000,-1000.0,5.2e-05,2]
[422846554,1779520412000,-1000.0,5.2e-05,2]
[422846555,1779520412000,-1000.0,5.2e-05,2]
[422846558,1779520413000,-1000.0,5.2e-05,2]
[422846557,1779520413000,-1000.0,5.2e-05,2]
[422846556,1779520413000,-1000.0,5.2e-05,2]
[422846561,1779520414000,-1000.0,5.2e-05,2]
[422846560,1779520414000,-1000.0,5.2e-05,2]
[422846559,1779520414000,-1000.0,5.2e-05,2]
[422846563,1779520415000,-1000.0,5.2e-05,2]
[422846562,1779520415000,-1000.0,5.2e-05,2]
[422846564,1779520416000,-1000.0,5.2e-05,2]
[422846566,1779520416000,-1000.0,5.2e-05,2]
[422846565,1779520416000,-1000.0,5.2e-05,2]
[422846569,1779520417000,-1000.0,5.2e-05,2]
[422846568,1779520417000,-1000.0,5.2e-05,2]
[422846567,1779520417000,-1000.0,5.2e-05,2]
[422846573,1779520418000,-579.1877145,5.251e-05,2]
[422846572,1779520418000,-300.0,5.2e-05,2]
[422846571,1779520418000,-1000.0,5.2e-05,2]
[422846570,1779520418000,-1000.0,5.2e-05,2]
[422846574,1779520419000,-120.8122855,5.303e-05,2]
[422846576,1779520419000,-300.0,5.303e-05,2]
[422846575,1779520419000,-179.1877145,5.303e-05,2]
[422846578,1779520419000,-220.8122855,5.303e-05,2]
[422846580,1779520419000,-300.0,5.303e-05,2]
[422846579,1779520419000,-79.1877145,5.303e-05,2]
[422846581,1779520419000,-300.0,5.303e-05,2]
[422846582,1779520419000,-300.0,5.303e-05,2]
[422846583,1779520419000,-20.8122855,5.303e-05,2]
[422846577,1779520419000,-300.0,5.303e-05,2]
[422846587,1779520420000,-120.8122855,5.303e-05,2]
[422846586,1779520420000,-300.0,5.303e-05,2]
[422846584,1779520420000,-279.1877145,5.303e-05,2]
[422846588,1779520420000,-179.1877145,5.303e-05,2]
[422846585,1779520420000,-300.0,5.303e-05,2]
[422846591,1779520420000,-220.8122855,5.303e-05,2]
[422846590,1779520420000,-300.0,5.303e-05,2]
[422846592,1779520420000,-79.1877145,5.303e-05,2]
[422846594,1779520420000,-620.8122855,5.37e-05,2]
[422846593,1779520420000,-300.0,5.303e-05,2]
[422846589,1779520420000,-300.0,5.303e-05,2]
[422846596,1779520421000,-1000.0,5.37e-05,2]
[422846595,1779520421000,-1000.0,5.37e-05,2]
[422846601,1779520422000,-20.8122855,5.424e-05,2]
[422846599,1779520422000,-379.1877145,5.37e-05,2]
[422846600,1779520422000,-600.0,5.408e-05,2]
[422846598,1779520422000,-1000.0,5.37e-05,2]
[422846597,1779520422000,-1000.0,5.37e-05,2]
[422846602,1779520423000,-1000.0,5.424e-05,2]
[422846603,1779520423000,-1000.0,5.424e-05,2]
[422846606,1779520424000,-979.1877145,5.424e-05,2]
[422846607,1779520424000,-20.8122855,5.478e-05,2]
[422846605,1779520424000,-1000.0,5.424e-05,2]
[422846604,1779520424000,-1000.0,5.424e-05,2]
[422846613,1779520425000,-36.85047168,5.478e-05,2]
[422846611,1779520425000,-463.14952832,5.478e-05,2]
[422846612,1779520425000,-500.0,5.478e-05,2]
[422846610,1779520425000,-36.85047168,5.478e-05,2]
[422846608,1779520425000,-463.14952832,5.478e-05,2]
[422846609,1779520425000,-500.0,5.478e-05,2]
[422846615,1779520426000,-500.0,5.478e-05,2]
[422846616,1779520426000,-36.85047168,5.478e-05,2]
[422846618,1779520426000,-500.0,5.478e-05,2]
[422846614,1779520426000,-463.14952832,5.478e-05,2]
[422846619,1779520426000,-36.85047168,5.478e-05,2]
[422846620,1779520426000,-463.14952832,5.478e-05,2]
[422846622,1779520426000,-36.85047168,5.478e-05,2]
[422846621,1779520426000,-500.0,5.478e-05,2]
[422846617,1779520426000,-463.14952832,5.478e-05,2]
[422846632,1779520427000,-36.85047168,5.478e-05,2]
[422846631,1779520427000,-500.0,5.478e-05,2]
[422846630,1779520427000,-463.14952832,5.478e-05,2]
[422846629,1779520427000,-36.85047168,5.478e-05,2]
[422846628,1779520427000,-500.0,5.478e-05,2]
[422846627,1779520427000,-463.14952832,5.478e-05,2]
[422846625,1779520427000,-500.0,5.478e-05,2]
[422846626,1779520427000,-36.85047168,5.478e-05,2]
[422846624,1779520427000,-463.14952832,5.478e-05,2]
[422846623,1779520427000,853.84,0.000178,120]
[422846634,1779520428000,-500.0,5.478e-05,2]
[422846633,1779520428000,-463.14952832,5.478e-05,2]
[422846636,1779520428000,-463.14952832,5.478e-05,2]
[422846637,1779520428000,-536.85047168,5.478e-05,2]
[422846635,1779520428000,-36.85047168,5.478e-05,2]
[422846640,1779520429000,-1000.0,5.37e-05,2]
[422846639,1779520429000,-1000.0,5.37e-05,2]
[422846638,1779520429000,-1000.0,5.37e-05,2]
[422846643,1779520430000,-3.5119317,5.478e-05,2]
[422846642,1779520430000,-1000.0,5.37e-05,2]
[422846641,1779520430000,-1000.0,5.37e-05,2]
[422846645,1779520431000,-496.4880683,5.478e-05,2]
[422846644,1779520431000,-500.0,5.478e-05,2]
[422846647,1779520431000,-500.0,5.478e-05,2]
[422846651,1779520431000,-496.4880683,5.478e-05,2]
[422846646,1779520431000,-3.5119317,5.478e-05,2]
[422846650,1779520431000,-500.0,5.478e-05,2]
[422846649,1779520431000,-3.5119317,5.478e-05,2]
[422846648,1779520431000,-496.4880683,5.478e-05,2]
[422846652,1779520432000,-3.5119317,5.478e-05,2]
[422846654,1779520432000,-496.4880683,5.478e-05,2]
[422846653,1779520432000,-500.0,5.478e-05,2]
[422846655,1779520432000,-3.5119317,5.478e-05,2]
[422846656,1779520432000,-500.0,5.478e-05,2]
[422846658,1779520432000,-3.5119317,5.478e-05,2]
[422846657,1779520432000,-496.4880683,5.478e-05,2]
[422846666,1779520433000,-496.4880683,5.478e-05,2]
[422846664,1779520433000,-3.5119317,5.478e-05,2]
[422846665,1779520433000,-500.0,5.478e-05,2]
[422846662,1779520433000,-500.0,5.478e-05,2]
[422846663,1779520433000,-496.4880683,5.478e-05,2]
[422846661,1779520433000,-3.5119317,5.478e-05,2]
[422846659,1779520433000,-500.0,5.478e-05,2]
[422846660,1779520433000,-496.4880683,5.478e-05,2]
[422846667,1779520434000,-3.5119317,5.478e-05,2]
[422846669,1779520434000,-496.4880683,5.478e-05,2]
[422846668,1779520434000,-500.0,5.478e-05,2]
[422846670,1779520434000,-3.5119317,5.478e-05,2]
[422846672,1779520434000,-496.4880683,5.478e-05,2]
[422846671,1779520434000,-500.0,5.478e-05,2]
[422846673,1779520434000,-3.5119317,5.478e-05,2]
[422846674,1779520434000,-500.0,5.478e-05,2]
[422846679,1779520435000,-3.5119317,5.478e-05,2]
[422846681,1779520435000,-496.4880683,5.478e-05,2]
[422846680,1779520435000,-500.0,5.478e-05,2]
[422846677,1779520435000,-500.0,5.478e-05,2]
[422846678,1779520435000,-496.4880683,5.478e-05,2]
[422846676,1779520435000,-3.5119317,5.478e-05,2]
[422846675,1779520435000,-496.4880683,5.478e-05,2]
[422846683,1779520436000,-500.0,5.478e-05,2]
[422846684,1779520436000,-496.4880683,5.478e-05,2]
[422846682,1779520436000,-3.5119317,5.478e-05,2]
[422846686,1779520436000,-500.0,5.478e-05,2]
[422846687,1779520436000,-496.4880683,5.478e-05,2]
[422846685,1779520436000,-3.5119317,5.478e-05,2]
[422846692,1779520437000,-500.0,5.478e-05,2]
[422846693,1779520437000,-346.15465051,5.478e-05,2]
[422846691,1779520437000,-153.84534949,5.478e-05,2]
[422846690,1779520437000,-346.15465051,5.478e-05,2]
[422846688,1779520437000,-153.84534949,5.478e-05,2]
[422846689,1779520437000,-500.0,5.478e-05,2]
[422846694,1779520438000,-153.84534949,5.478e-05,2]
[422846696,1779520438000,-346.15465051,5.478e-05,2]
[422846695,1779520438000,-500.0,5.478e-05,2]
[422846699,1779520438000,-346.15465051,5.478e-05,2]
[422846698,1779520438000,-500.0,5.478e-05,2]
[422846697,1779520438000,-153.84534949,5.478e-05,2]
[422846704,1779520439000,-500.0,5.478e-05,2]
[422846703,1779520439000,-153.84534949,5.478e-05,2]
[422846701,1779520439000,-500.0,5.478e-05,2]
[422846702,1779520439000,-346.15465051,5.478e-05,2]
[422846700,1779520439000,-153.84534949,5.478e-05,2]
[422846705,1779520439000,-346.15465051,5.478e-05,2]
[422846706,1779520440000,-153.84534949,5.478e-05,2]
[422846711,1779520440000,-346.15465051,5.478e-05,2]
[422846709,1779520440000,-153.84534949,5.478e-05,2]
[422846710,1779520440000,-500.0,5.478e-05,2]
[422846707,1779520440000,-500.0,5.478e-05,2]
[422846708,1779520440000,-346.15465051,5.478e-05,2]
[422846712,1779520441000,-153.84534949,5.478e-05,2]
[422846714,1779520441000,-346.15465051,5.478e-05,2]
[422846713,1779520441000,-500.0,5.478e-05,2]
[422846717,1779520441000,-346.15465051,5.478e-05,2]
[422846716,1779520441000,-500.0,5.478e-05,2]
[422846715,1779520441000,-153.84534949,5.478e-05,2]
[422846718,1779520441000,-153.84534949,5.478e-05,2]
[422846719,1779520442000,-500.0,5.478e-05,2]
[422846720,1779520442000,-346.15465051,5.478e-05,2]
[422846722,1779520442000,-153.84534949,5.478e-05,2]
[422846721,1779520442000,-300.0,5.477e-05,2]
[422846725,1779520442000,-453.84534949,5.478e-05,2]
[422846724,1779520442000,-46.15465051,5.478e-05,2]
[422846726,1779520442000,-500.0,5.478e-05,2]
[422846727,1779520442000,-46.15465051,5.478e-05,2]
[422846723,1779520442000,-500.0,5.478e-05,2]
[422846731,1779520443000,-453.84534949,5.478e-05,2]
[422846732,1779520443000,-500.0,5.478e-05,2]
[422846733,1779520443000,-46.15465051,5.478e-05,2]
[422846728,1779520443000,-453.84534949,5.478e-05,2]
[422846730,1779520443000,-46.15465051,5.478e-05,2]
[422846729,1779520443000,-500.0,5.478e-05,2]
[422846734,1779520444000,-453.84534949,5.478e-05,2]
[422846735,1779520444000,-500.0,5.478e-05,2]
[422846736,1779520444000,-46.15465051,5.478e-05,2]
[422846738,1779520444000,-500.0,5.478e-05,2]
[422846739,1779520444000,-46.15465051,5.478e-05,2]
[422846740,1779520444000,-1000.0,5.423e-05,2]
[422846737,1779520444000,-453.84534949,5.478e-05,2]
[422846742,1779520445000,-1000.0,5.423e-05,2]
[422846741,1779520445000,-1000.0,5.423e-05,2]
[422846744,1779520446000,-1000.0,5.423e-05,2]
[422846743,1779520446000,-1000.0,5.423e-05,2]
[422846745,1779520447000,-453.84534949,5.478e-05,2]
[422846747,1779520447000,-46.15465051,5.478e-05,2]
[422846746,1779520447000,-500.0,5.478e-05,2]
[422846749,1779520447000,-446.15465051,5.478e-05,2]
[422846750,1779520447000,-53.84534949,5.478e-05,2]
[422846752,1779520447000,-446.15465051,5.478e-05,2]
[422846751,1779520447000,-500.0,5.478e-05,2]
[422846748,1779520447000,-553.84534949,5.478e-05,2]
[422846756,1779520448000,-53.84534949,5.478e-05,2]
[422846753,1779520448000,-53.84534949,5.478e-05,2]
[422846754,1779520448000,-500.0,5.478e-05,2]
[422846755,1779520448000,-446.15465051,5.478e-05,2]
[422846757,1779520448000,-500.0,5.478e-05,2]
[422846758,1779520448000,-344.50632318,5.479e-05,2]
[422846759,1779520448000,-101.64832733,5.6e-05,2]
[422846762,1779520449000,-1000.0,5.6e-05,2]
[422846761,1779520449000,-1000.0,5.6e-05,2]
[422846760,1779520449000,-1000.0,5.6e-05,2]
[422846764,1779520450000,-898.35167267,5.6e-05,2]
[422846763,1779520450000,-1000.0,5.6e-05,2]
[422846765,1779520451000,101.64832733,5.587e-05,2]
[422846767,1779520451000,300.0,5.587e-05,2]
[422846766,1779520451000,198.35167267,5.587e-05,2]
[422846769,1779520452000,201.64832733,5.587e-05,2]
[422846770,1779520452000,98.35167267,5.587e-05,2]
[422846768,1779520452000,300.0,5.587e-05,2]
[422846772,1779520453000,300.0,5.587e-05,2]
[422846771,1779520453000,300.0,5.587e-05,2]
[422846775,1779520454000,298.35167267,5.587e-05,2]
[422846774,1779520454000,1.64832733,5.587e-05,2]
[422846773,1779520454000,300.0,5.587e-05,2]
[422846777,1779520455000,300.0,5.587e-05,2]
[422846776,1779520455000,300.0,5.587e-05,2]
[422846780,1779520456000,300.0,5.587e-05,2]
[422846779,1779520456000,198.35167267,5.587e-05,2]
[422846778,1779520456000,101.64832733,5.587e-05,2]
[422846781,1779520457000,300.0,5.587e-05,2]
[422846783,1779520457000,98.35167267,5.587e-05,2]
[422846782,1779520457000,201.64832733,5.587e-05,2]
[422846784,1779520458000,300.0,5.587e-05,2]
[422846787,1779520541000,-561.439,5.599e-05,2]
[422846788,1779520549000,222.68018165,0.00014579,120]
[422846789,1779520560000,-321.561,5.599e-05,2]
[422846790,1779520573000,-300.0,5.71e-05,2]
[422846791,1779520573000,-103.439,5.711e-05,2]
[422846793,1779520608000,-1000.0,5.5e-05,2]
[422846796,1779520610000,-1000.0,5.5e-05,2]
[422846795,1779520610000,-1000.0,5.5e-05,2]
[422846794,1779520610000,-1000.0,5.5e-05,2]
[422846799,1779520611000,-1000.0,5.5e-05,2]
[422846798,1779520611000,-1000.0,5.5e-05,2]
[422846797,1779520611000,-1000.0,5.5e-05,2]
[422846801,1779520612000,-1000.0,5.5e-05,2]
[422846800,1779520612000,-1000.0,5.5e-05,2]
[422846802,1779520613000,-1000.0,5.5e-05,2]
[422846803,1779520613000,-1000.0,5.5e-05,2]
[422846804,1779520613000,-1000.0,5.5e-05,2]
[422846807,1779520614000,-1000.0,5.5e-05,2]
[422846806,1779520614000,-1000.0,5.5e-05,2]
[422846805,1779520614000,-1000.0,5.5e-05,2]
[422846810,1779520615000,-1000.0,5.5e-05,2]
[422846809,1779520615000,-1000.0,5.5e-05,2]
[422846808,1779520615000,-1000.0,5.5e-05,2]
[422846813,1779520616000,-1000.0,5.5e-05,2]
[422846812,1779520616000,-1000.0,5.5e-05,2]
[422846811,1779520616000,-1000.0,5.5e-05,2]
[422846816,1779520617000,-1000.0,5.5e-05,2]
[422846815,1779520617000,-1000.0,5.5e-05,2]
[422846814,1779520617000,-1000.0,5.5e-05,2]
[422846817,1779520618000,-1000.0,5.5e-05,2]
[422846818,1779520663000,-1000.0,5.54e-05,2]
[422846819,1779520664000,-1000.0,5.54e-05,2]
[422846821,1779520665000,-1000.0,5.54e-05,2]
[422846822,1779520665000,-1000.0,5.54e-05,2]
[422846820,1779520665000,-1000.0,5.54e-05,2]
[422846823,1779520666000,-1000.0,5.596e-05,2]
[422846825,1779520666000,-1000.0,5.596e-05,2]
[422846824,1779520666000,-1000.0,5.596e-05,2]
[422846827,1779520667000,-1000.0,5.596e-05,2]
[422846826,1779520667000,-1000.0,5.596e-05,2]
[422846830,1779520671000,1000.0,5.6e-05,2]
[422846828,1779520671000,1000.0,5.6e-05,2]
[422846829,1779520671000,1000.0,5.6e-05,2]
[422846832,1779520676000,-1000.0,5.6e-05,2]
[422846831,1779520676000,-1000.0,5.6e-05,2]
[422846835,1779520679000,1000.0,5.6e-05,2]
[422846834,1779520679000,1000.0,5.6e-05,2]
[422846833,1779520679000,1000.0,5.6e-05,2]
[422846836,1779520688000,-1000.0,5.6e-05,2]
[422846837,1779520688000,-1000.0,5.6e-05,2]
[422846838,1779520697000,-1000.0,5.596e-05,2]
[422846840,1779520698000,-1000.0,5.59e-05,2]
[422846839,1779520698000,-1000.0,5.59e-05,2]
[422846841,1779520699000,-1000.0,5.59e-05,2]
[422846842,1779520700000,-1000.0,5.59e-05,2]
[422846844,1779520706000,-1000.0,5.534e-05,2]
[422846843,1779520706000,-1000.0,5.534e-05,2]
[422846848,1779520707000,-1000.0,5.534e-05,2]
[422846846,1779520707000,-1000.0,5.534e-05,2]
[422846845,1779520707000,-1000.0,5.534e-05,2]
[422846856,1779520708000,-1000.0,5.59e-05,2]
[422846853,1779520708000,-1000.0,5.59e-05,2]
[422846851,1779520708000,-1000.0,5.59e-05,2]
[422846859,1779520709000,-1000.0,5.59e-05,2]
[422846861,1779520709000,-1000.0,5.59e-05,2]
[422846860,1779520709000,-1000.0,5.59e-05,2]
[422846862,1779520710000,-1000.0,5.59e-05,2]
[422846863,1779520710000,-1000.0,5.59e-05,2]
[422846866,1779520711000,-1000.0,5.59e-05,2]
[422846865,1779520711000,-1000.0,5.59e-05,2]
[422846864,1779520711000,-1000.0,5.59e-05,2]
[422846869,1779520712000,-1000.0,5.59e-05,2]
[422846868,1779520712000,-1000.0,5.59e-05,2]
[422846867,1779520712000,-1000.0,5.59e-05,2]
[422846871,1779520713000,-1000.0,5.59e-05,2]
[422846870,1779520713000,-1000.0,5.59e-05,2]
[422846873,1779520714000,-1000.0,5.59e-05,2]
[422846872,1779520714000,-1000.0,5.59e-05,2]
[422846874,1779520715000,-1000.0,5.59e-05,2]
[422846876,1779520715000,-1000.0,5.596e-05,2]
[422846875,1779520715000,-1000.0,5.596e-05,2]
[422846877,1779520716000,-1000.0,5.596e-05,2]
[422846878,1779520716000,-1000.0,5.596e-05,2]
[422846879,1779520781000,-5000.0,5.544e-05,2]
[422846880,1779520782000,-5000.0,5.6e-05,2]
[422846884,1779520845000,-5000.0,5.489e-05,2]
[422846885,1779520846000,-5000.0,5.544e-05,2]
[422846886,1779520847000,-5000.0,5.6e-05,2]
[422846887,1779520897000,-5000.0,5.459e-05,2]
[422846889,1779520898000,-5000.0,5.57e-05,2]
[422846888,1779520898000,-5000.0,5.514e-05,2]
[422846890,1779520902000,5000.0,5.6e-05,2]
[422846891,1779520930000,-5000.0,5.458e-05,2]
[422846892,1779520955000,-5000.0,5.458e-05,2]
[422846893,1779520956000,-5000.0,5.513e-05,2]
[422846894,1779520977000,-1145.89,5.458e-05,2]
[422846895,1779520982000,-3854.11,5.458e-05,2]
[422846896,1779520982000,-903.89,5.513e-05,2]
[422846899,1779521000000,-270.89,5.569e-05,2]
[422846898,1779521000000,-4096.11,5.513e-05,2]
[422846897,1779521000000,-5000.0,5.458e-05,2]
[422846901,1779521026000,-4227.0,5.513e-05,2]
[422846900,1779521026000,-5000.0,5.458e-05,2]
[422846902,1779521043000,-325.665,5.458e-05,2]
[422846905,1779521044000,-300.0,5.568e-05,2]
[422846906,1779521044000,-4252.665,5.569e-05,2]
[422846903,1779521044000,-4674.335,5.458e-05,2]
[422846904,1779521044000,-773.0,5.513e-05,2]
[422846908,1779521067000,-1200.0,5.513e-05,2]
[422846907,1779521067000,-5000.0,5.458e-05,2]
[422846910,1779521099000,-5000.0,5.458e-05,2]